{"text_format":"1","workbook":"xlsx","n_sheets":7,"sheets":["Pannello","Griglia","Indicatori","Risultati","Word","Voto","Giudizi"],"not_rendered":{"charts":1,"images":0,"macros":1,"external_links":0,"defined_names":0,"comments":0,"pivot_tables":0},"unopened":[],"bounds":{"document_bytes":16777216,"sheet_cells":100000,"rows_first":2000,"rows_last":500,"rows_between":2000,"halvings":0,"cell_chars":16384,"cell_head_chars":4096},"cells_cut":0,"cells_raw":0,"read":"whole","date_system":"1900"}

{"sheet":"Pannello","index":0,"n_rows":0,"n_cols":0,"rows_kept":0,"cut":false,"hidden":false,"merged":[]}

{"sheet":"Griglia","index":1,"n_rows":5,"n_cols":7,"rows_kept":5,"cut":false,"hidden":false,"merged":[]}
[null,10,8.5,7,5.5,4]
["Conoscenza dei contenuti","Ha dimostrato una completa conoscenza dei contenuti richiesti, ","Ha dimostrato una più che buona conoscenza dei contenuti richiesti, ","Ha dimostrato più che sufficiente conoscenza dei contenuti richiesti nonostante alcune imprecisioni, ","Ha dimostrato una quasi sufficiente conoscenza dei contenuti, con alcune lacune, ","Ha dimostrato una solo parziale conoscenza dei contenuti richiesti, "]
["Risoluzione dei problemi","un'ottima capacità di analisi e di risoluzione dei quesiti che richiedono ragionamento e ","una più che buona capacità di analisi e di risoluzione dei quesiti che richiedono ragionamento e ","una più che sufficiente capacità di analisi e risoluzione dei quesiti che richiedono ragionamento e ","una sufficiente capacità di analisi e risoluzione dei quesiti che richiedono ragionamento e ","una solo parziale capacità di analisi e risoluzione dei quesiti che richiedono ragionamento e "]
["Capacità di calcolo","un'ottima capacità di calcolo. ","una più che buona capacità di calcolo. ","una discreta capacità di calcolo. ","una capacità di calcolo limitata alle situazioni più semplici. ","una solo parziale capacità di calcolo, con un elevato numero di errori che compromettono il raggiungimento dei risultati corretti. "," "]
["Descrizione del procedimento","Ha descritto in modo completo e ordinato il procedimento utilizzato per rispondere ai quesiti.","Ha descritto in modo completo il procedimento utilizzato per risolvere i quesiti.","Ha descritto in modo  corretto  il procedimento utilizzato per risolvere i quesiti.","Ha descritto in modo superficiale il procedimento utilizzato per risolvere i quesiti.","Ha descritto solo parzialmente il procedimento utilizzato per risolvere i quesiti."]

{"sheet":"Indicatori","index":2,"n_rows":5,"n_cols":3,"rows_kept":5,"cut":false,"hidden":false,"merged":[]}
[null,"Peso","Indicatori"]
[{"$f":"Griglia!A2","v":"Conoscenza dei contenuti"},5]
[{"$f":"Griglia!A3","v":"Risoluzione dei problemi"},5]
[{"$f":"Griglia!A5","v":"Descrizione del procedimento"},5]
[{"$f":"Griglia!A4","v":"Capacità di calcolo"},5]

{"sheet":"Risultati","index":3,"n_rows":31,"n_cols":4,"rows_kept":31,"cut":false,"hidden":false,"merged":[]}
["Alunno","Punteggio","Voto","Giudizio"]
[{"$f":"Giudizi!A2","v":0},{"$f":"Giudizi!K2","v":""},{"$f":"ROUND((B2*Voto!$A$7+Voto!$B$7)*2,0)/2","v":{"$error":"#VALUE!"}},{"$f":"Giudizi!L2","v":""}]
[{"$f":"Giudizi!A3","v":0},{"$f":"Giudizi!K3","v":""},{"$f":"ROUND((B3*Voto!$A$7+Voto!$B$7)*2,0)/2","v":{"$error":"#VALUE!"}},{"$f":"Giudizi!L3","v":""}]
[{"$f":"Giudizi!A4","v":0},{"$f":"Giudizi!K4","v":""},{"$f":"ROUND((B4*Voto!$A$7+Voto!$B$7)*2,0)/2","v":{"$error":"#VALUE!"}},{"$f":"Giudizi!L4","v":""}]
[{"$f":"Giudizi!A5","v":0},{"$f":"Giudizi!K5","v":""},{"$f":"ROUND((B5*Voto!$A$7+Voto!$B$7)*2,0)/2","v":{"$error":"#VALUE!"}},{"$f":"Giudizi!L5","v":""}]
[{"$f":"Giudizi!A6","v":0},{"$f":"Giudizi!K6","v":""},{"$f":"ROUND((B6*Voto!$A$7+Voto!$B$7)*2,0)/2","v":{"$error":"#VALUE!"}},{"$f":"Giudizi!L6","v":""}]
[{"$f":"Giudizi!A7","v":0},{"$f":"Giudizi!K7","v":""},{"$f":"ROUND((B7*Voto!$A$7+Voto!$B$7)*2,0)/2","v":{"$error":"#VALUE!"}},{"$f":"Giudizi!L7","v":""}]
[{"$f":"Giudizi!A8","v":0},{"$f":"Giudizi!K8","v":""},{"$f":"ROUND((B8*Voto!$A$7+Voto!$B$7)*2,0)/2","v":{"$error":"#VALUE!"}},{"$f":"Giudizi!L8","v":""}]
[{"$f":"Giudizi!A9","v":0},{"$f":"Giudizi!K9","v":""},{"$f":"ROUND((B9*Voto!$A$7+Voto!$B$7)*2,0)/2","v":{"$error":"#VALUE!"}},{"$f":"Giudizi!L9","v":""}]
[{"$f":"Giudizi!A10","v":0},{"$f":"Giudizi!K10","v":""},{"$f":"ROUND((B10*Voto!$A$7+Voto!$B$7)*2,0)/2","v":{"$error":"#VALUE!"}},{"$f":"Giudizi!L10","v":""}]
[{"$f":"Giudizi!A11","v":0},{"$f":"Giudizi!K11","v":""},{"$f":"ROUND((B11*Voto!$A$7+Voto!$B$7)*2,0)/2","v":{"$error":"#VALUE!"}},{"$f":"Giudizi!L11","v":""}]
[{"$f":"Giudizi!A12","v":0},{"$f":"Giudizi!K12","v":""},{"$f":"ROUND((B12*Voto!$A$7+Voto!$B$7)*2,0)/2","v":{"$error":"#VALUE!"}},{"$f":"Giudizi!L12","v":""}]
[{"$f":"Giudizi!A13","v":0},{"$f":"Giudizi!K13","v":""},{"$f":"ROUND((B13*Voto!$A$7+Voto!$B$7)*2,0)/2","v":{"$error":"#VALUE!"}},{"$f":"Giudizi!L13","v":""}]
[{"$f":"Giudizi!A14","v":0},{"$f":"Giudizi!K14","v":""},{"$f":"ROUND((B14*Voto!$A$7+Voto!$B$7)*2,0)/2","v":{"$error":"#VALUE!"}},{"$f":"Giudizi!L14","v":""}]
[{"$f":"Giudizi!A15","v":0},{"$f":"Giudizi!K15","v":""},{"$f":"ROUND((B15*Voto!$A$7+Voto!$B$7)*2,0)/2","v":{"$error":"#VALUE!"}},{"$f":"Giudizi!L15","v":""}]
[{"$f":"Giudizi!A16","v":0},{"$f":"Giudizi!K16","v":""},{"$f":"ROUND((B16*Voto!$A$7+Voto!$B$7)*2,0)/2","v":{"$error":"#VALUE!"}},{"$f":"Giudizi!L16","v":""}]
[{"$f":"Giudizi!A17","v":0},{"$f":"Giudizi!K17","v":""},{"$f":"ROUND((B17*Voto!$A$7+Voto!$B$7)*2,0)/2","v":{"$error":"#VALUE!"}},{"$f":"Giudizi!L17","v":""}]
[{"$f":"Giudizi!A18","v":0},{"$f":"Giudizi!K18","v":""},{"$f":"ROUND((B18*Voto!$A$7+Voto!$B$7)*2,0)/2","v":{"$error":"#VALUE!"}},{"$f":"Giudizi!L18","v":""}]
[{"$f":"Giudizi!A19","v":0},{"$f":"Giudizi!K19","v":""},{"$f":"ROUND((B19*Voto!$A$7+Voto!$B$7)*2,0)/2","v":{"$error":"#VALUE!"}},{"$f":"Giudizi!L19","v":""}]
[{"$f":"Giudizi!A20","v":0},{"$f":"Giudizi!K20","v":""},{"$f":"ROUND((B20*Voto!$A$7+Voto!$B$7)*2,0)/2","v":{"$error":"#VALUE!"}},{"$f":"Giudizi!L20","v":""}]
[{"$f":"Giudizi!A21","v":0},{"$f":"Giudizi!K21","v":""},{"$f":"ROUND((B21*Voto!$A$7+Voto!$B$7)*2,0)/2","v":{"$error":"#VALUE!"}},{"$f":"Giudizi!L21","v":""}]
[{"$f":"Giudizi!A22","v":0},{"$f":"Giudizi!K22","v":""},{"$f":"ROUND((B22*Voto!$A$7+Voto!$B$7)*2,0)/2","v":{"$error":"#VALUE!"}},{"$f":"Giudizi!L22","v":""}]
[{"$f":"Giudizi!A23","v":0},{"$f":"Giudizi!K23","v":""},{"$f":"ROUND((B23*Voto!$A$7+Voto!$B$7)*2,0)/2","v":{"$error":"#VALUE!"}},{"$f":"Giudizi!L23","v":""}]
[{"$f":"Giudizi!A24","v":0},{"$f":"Giudizi!K24","v":""},{"$f":"ROUND((B24*Voto!$A$7+Voto!$B$7)*2,0)/2","v":{"$error":"#VALUE!"}},{"$f":"Giudizi!L24","v":""}]
[{"$f":"Giudizi!A25","v":0},{"$f":"Giudizi!K25","v":""},{"$f":"ROUND((B25*Voto!$A$7+Voto!$B$7)*2,0)/2","v":{"$error":"#VALUE!"}},{"$f":"Giudizi!L25","v":""}]
[{"$f":"Giudizi!A26","v":0},{"$f":"Giudizi!K26","v":""},{"$f":"ROUND((B26*Voto!$A$7+Voto!$B$7)*2,0)/2","v":{"$error":"#VALUE!"}},{"$f":"Giudizi!L26","v":""}]
[{"$f":"Giudizi!A27","v":0},{"$f":"Giudizi!K27","v":""},{"$f":"ROUND((B27*Voto!$A$7+Voto!$B$7)*2,0)/2","v":{"$error":"#VALUE!"}},{"$f":"Giudizi!L27","v":""}]
[{"$f":"Giudizi!A28","v":0},{"$f":"Giudizi!K28","v":""},{"$f":"ROUND((B28*Voto!$A$7+Voto!$B$7)*2,0)/2","v":{"$error":"#VALUE!"}},{"$f":"Giudizi!L28","v":""}]
[{"$f":"Giudizi!A29","v":0},{"$f":"Giudizi!K29","v":""},{"$f":"ROUND((B29*Voto!$A$7+Voto!$B$7)*2,0)/2","v":{"$error":"#VALUE!"}},{"$f":"Giudizi!L29","v":""}]
[{"$f":"Giudizi!A30","v":0},{"$f":"Giudizi!K30","v":""},{"$f":"ROUND((B30*Voto!$A$7+Voto!$B$7)*2,0)/2","v":{"$error":"#VALUE!"}},{"$f":"Giudizi!L30","v":""}]
[{"$f":"Giudizi!A31","v":0},{"$f":"Giudizi!K31","v":""},{"$f":"ROUND((B31*Voto!$A$7+Voto!$B$7)*2,0)/2","v":{"$error":"#VALUE!"}}]

{"sheet":"Word","index":4,"n_rows":61,"n_cols":3,"rows_kept":61,"cut":false,"hidden":false,"merged":[]}
["Alunno"]
[1,{"$f":"INDIRECT(ADDRESS(Word!A2+1,1,,,\"Risultati\"))","v":0},{"$f":"INDIRECT(ADDRESS(A2+1,3,,,\"Risultati\"))","v":{"$error":"#VALUE!"}}]
[null,{"$f":"INDIRECT(ADDRESS(A2+1,4,,,\"Risultati\"))","v":""}]
[2,{"$f":"INDIRECT(ADDRESS(Word!A4+1,1,,,\"Risultati\"))","v":0},{"$f":"INDIRECT(ADDRESS(A4+1,3,,,\"Risultati\"))","v":{"$error":"#VALUE!"}}]
[null,{"$f":"INDIRECT(ADDRESS(A4+1,4,,,\"Risultati\"))","v":""}]
[3,{"$f":"INDIRECT(ADDRESS(Word!A6+1,1,,,\"Risultati\"))","v":0},{"$f":"INDIRECT(ADDRESS(A6+1,3,,,\"Risultati\"))","v":{"$error":"#VALUE!"}}]
[null,{"$f":"INDIRECT(ADDRESS(A6+1,4,,,\"Risultati\"))","v":""}]
[4,{"$f":"INDIRECT(ADDRESS(Word!A8+1,1,,,\"Risultati\"))","v":0},{"$f":"INDIRECT(ADDRESS(A8+1,3,,,\"Risultati\"))","v":{"$error":"#VALUE!"}}]
[null,{"$f":"INDIRECT(ADDRESS(A8+1,4,,,\"Risultati\"))","v":""}]
[5,{"$f":"INDIRECT(ADDRESS(Word!A10+1,1,,,\"Risultati\"))","v":0},{"$f":"INDIRECT(ADDRESS(A10+1,3,,,\"Risultati\"))","v":{"$error":"#VALUE!"}}]
[null,{"$f":"INDIRECT(ADDRESS(A10+1,4,,,\"Risultati\"))","v":""}]
[6,{"$f":"INDIRECT(ADDRESS(Word!A12+1,1,,,\"Risultati\"))","v":0},{"$f":"INDIRECT(ADDRESS(A12+1,3,,,\"Risultati\"))","v":{"$error":"#VALUE!"}}]
[null,{"$f":"INDIRECT(ADDRESS(A12+1,4,,,\"Risultati\"))","v":""}]
[7,{"$f":"INDIRECT(ADDRESS(Word!A14+1,1,,,\"Risultati\"))","v":0},{"$f":"INDIRECT(ADDRESS(A14+1,3,,,\"Risultati\"))","v":{"$error":"#VALUE!"}}]
[null,{"$f":"INDIRECT(ADDRESS(A14+1,4,,,\"Risultati\"))","v":""}]
[8,{"$f":"INDIRECT(ADDRESS(Word!A16+1,1,,,\"Risultati\"))","v":0},{"$f":"INDIRECT(ADDRESS(A16+1,3,,,\"Risultati\"))","v":{"$error":"#VALUE!"}}]
[null,{"$f":"INDIRECT(ADDRESS(A16+1,4,,,\"Risultati\"))","v":""}]
[9,{"$f":"INDIRECT(ADDRESS(Word!A18+1,1,,,\"Risultati\"))","v":0},{"$f":"INDIRECT(ADDRESS(A18+1,3,,,\"Risultati\"))","v":{"$error":"#VALUE!"}}]
[null,{"$f":"INDIRECT(ADDRESS(A18+1,4,,,\"Risultati\"))","v":""}]
[10,{"$f":"INDIRECT(ADDRESS(Word!A20+1,1,,,\"Risultati\"))","v":0},{"$f":"INDIRECT(ADDRESS(A20+1,3,,,\"Risultati\"))","v":{"$error":"#VALUE!"}}]
[null,{"$f":"INDIRECT(ADDRESS(A20+1,4,,,\"Risultati\"))","v":""}]
[11,{"$f":"INDIRECT(ADDRESS(Word!A22+1,1,,,\"Risultati\"))","v":0},{"$f":"INDIRECT(ADDRESS(A22+1,3,,,\"Risultati\"))","v":{"$error":"#VALUE!"}}]
[null,{"$f":"INDIRECT(ADDRESS(A22+1,4,,,\"Risultati\"))","v":""}]
[12,{"$f":"INDIRECT(ADDRESS(Word!A24+1,1,,,\"Risultati\"))","v":0},{"$f":"INDIRECT(ADDRESS(A24+1,3,,,\"Risultati\"))","v":{"$error":"#VALUE!"}}]
[null,{"$f":"INDIRECT(ADDRESS(A24+1,4,,,\"Risultati\"))","v":""}]
[13,{"$f":"INDIRECT(ADDRESS(Word!A26+1,1,,,\"Risultati\"))","v":0},{"$f":"INDIRECT(ADDRESS(A26+1,3,,,\"Risultati\"))","v":{"$error":"#VALUE!"}}]
[null,{"$f":"INDIRECT(ADDRESS(A26+1,4,,,\"Risultati\"))","v":""}]
[14,{"$f":"INDIRECT(ADDRESS(Word!A28+1,1,,,\"Risultati\"))","v":0},{"$f":"INDIRECT(ADDRESS(A28+1,3,,,\"Risultati\"))","v":{"$error":"#VALUE!"}}]
[null,{"$f":"INDIRECT(ADDRESS(A28+1,4,,,\"Risultati\"))","v":""}]
[15,{"$f":"INDIRECT(ADDRESS(Word!A30+1,1,,,\"Risultati\"))","v":0},{"$f":"INDIRECT(ADDRESS(A30+1,3,,,\"Risultati\"))","v":{"$error":"#VALUE!"}}]
[null,{"$f":"INDIRECT(ADDRESS(A30+1,4,,,\"Risultati\"))","v":""}]
[16,{"$f":"INDIRECT(ADDRESS(Word!A32+1,1,,,\"Risultati\"))","v":0},{"$f":"INDIRECT(ADDRESS(A32+1,3,,,\"Risultati\"))","v":{"$error":"#VALUE!"}}]
[null,{"$f":"INDIRECT(ADDRESS(A32+1,4,,,\"Risultati\"))","v":""}]
[17,{"$f":"INDIRECT(ADDRESS(Word!A34+1,1,,,\"Risultati\"))","v":0},{"$f":"INDIRECT(ADDRESS(A34+1,3,,,\"Risultati\"))","v":{"$error":"#VALUE!"}}]
[null,{"$f":"INDIRECT(ADDRESS(A34+1,4,,,\"Risultati\"))","v":""}]
[18,{"$f":"INDIRECT(ADDRESS(Word!A36+1,1,,,\"Risultati\"))","v":0},{"$f":"INDIRECT(ADDRESS(A36+1,3,,,\"Risultati\"))","v":{"$error":"#VALUE!"}}]
[null,{"$f":"INDIRECT(ADDRESS(A36+1,4,,,\"Risultati\"))","v":""}]
[19,{"$f":"INDIRECT(ADDRESS(Word!A38+1,1,,,\"Risultati\"))","v":0},{"$f":"INDIRECT(ADDRESS(A38+1,3,,,\"Risultati\"))","v":{"$error":"#VALUE!"}}]
[null,{"$f":"INDIRECT(ADDRESS(A38+1,4,,,\"Risultati\"))","v":""}]
[20,{"$f":"INDIRECT(ADDRESS(Word!A40+1,1,,,\"Risultati\"))","v":0},{"$f":"INDIRECT(ADDRESS(A40+1,3,,,\"Risultati\"))","v":{"$error":"#VALUE!"}}]
[null,{"$f":"INDIRECT(ADDRESS(A40+1,4,,,\"Risultati\"))","v":""}]
[21,{"$f":"INDIRECT(ADDRESS(Word!A42+1,1,,,\"Risultati\"))","v":0},{"$f":"INDIRECT(ADDRESS(A42+1,3,,,\"Risultati\"))","v":{"$error":"#VALUE!"}}]
[null,{"$f":"INDIRECT(ADDRESS(A42+1,4,,,\"Risultati\"))","v":""}]
[22,{"$f":"INDIRECT(ADDRESS(Word!A44+1,1,,,\"Risultati\"))","v":0},{"$f":"INDIRECT(ADDRESS(A44+1,3,,,\"Risultati\"))","v":{"$error":"#VALUE!"}}]
[null,{"$f":"INDIRECT(ADDRESS(A44+1,4,,,\"Risultati\"))","v":""}]
[23,{"$f":"INDIRECT(ADDRESS(Word!A46+1,1,,,\"Risultati\"))","v":0},{"$f":"INDIRECT(ADDRESS(A46+1,3,,,\"Risultati\"))","v":{"$error":"#VALUE!"}}]
[null,{"$f":"INDIRECT(ADDRESS(A46+1,4,,,\"Risultati\"))","v":""}]
[24,{"$f":"INDIRECT(ADDRESS(Word!A48+1,1,,,\"Risultati\"))","v":0},{"$f":"INDIRECT(ADDRESS(A48+1,3,,,\"Risultati\"))","v":{"$error":"#VALUE!"}}]
[null,{"$f":"INDIRECT(ADDRESS(A48+1,4,,,\"Risultati\"))","v":""}]
[25,{"$f":"INDIRECT(ADDRESS(Word!A50+1,1,,,\"Risultati\"))","v":0},{"$f":"INDIRECT(ADDRESS(A50+1,3,,,\"Risultati\"))","v":{"$error":"#VALUE!"}}]
[null,{"$f":"INDIRECT(ADDRESS(A50+1,4,,,\"Risultati\"))","v":""}]
[26,{"$f":"INDIRECT(ADDRESS(Word!A52+1,1,,,\"Risultati\"))","v":0},{"$f":"INDIRECT(ADDRESS(A52+1,3,,,\"Risultati\"))","v":{"$error":"#VALUE!"}}]
[null,{"$f":"INDIRECT(ADDRESS(A52+1,4,,,\"Risultati\"))","v":""}]
[27,{"$f":"INDIRECT(ADDRESS(Word!A54+1,1,,,\"Risultati\"))","v":0},{"$f":"INDIRECT(ADDRESS(A54+1,3,,,\"Risultati\"))","v":{"$error":"#VALUE!"}}]
[null,{"$f":"INDIRECT(ADDRESS(A54+1,4,,,\"Risultati\"))","v":""}]
[28,{"$f":"INDIRECT(ADDRESS(Word!A56+1,1,,,\"Risultati\"))","v":0},{"$f":"INDIRECT(ADDRESS(A56+1,3,,,\"Risultati\"))","v":{"$error":"#VALUE!"}}]
[null,{"$f":"INDIRECT(ADDRESS(A56+1,4,,,\"Risultati\"))","v":""}]
[29,{"$f":"INDIRECT(ADDRESS(Word!A58+1,1,,,\"Risultati\"))","v":0},{"$f":"INDIRECT(ADDRESS(A58+1,3,,,\"Risultati\"))","v":{"$error":"#VALUE!"}}]
[null,{"$f":"INDIRECT(ADDRESS(A58+1,4,,,\"Risultati\"))","v":""}]
[30,{"$f":"INDIRECT(ADDRESS(Word!A60+1,1,,,\"Risultati\"))","v":0},{"$f":"INDIRECT(ADDRESS(A60+1,3,,,\"Risultati\"))","v":{"$error":"#VALUE!"}}]
[null,{"$f":"INDIRECT(ADDRESS(A60+1,4,,,\"Risultati\"))","v":0}]

{"sheet":"Voto","index":5,"n_rows":7,"n_cols":2,"rows_kept":7,"cut":false,"hidden":true,"merged":[]}
[{"$f":"SUM(Indicatori!B2:B5)","v":20},{"$f":"Griglia!F1","v":4}]
[{"$f":"A1*2","v":40},{"$f":"Griglia!E1","v":5.5}]
[{"$f":"3*A1","v":60},{"$f":"Griglia!D1","v":7}]
[{"$f":"4*A1","v":80},{"$f":"Griglia!C1","v":8.5}]
[{"$f":"5*A1","v":100},{"$f":"Griglia!B1","v":10}]
[]
[{"$f":"LINEST(B1:B5,A1:A5,,)","v":7.4999999999999997E-2},2.5]

{"sheet":"Giudizi","index":6,"n_rows":55,"n_cols":12,"rows_kept":55,"cut":false,"hidden":true,"merged":[]}
["Cognome","Voto",{"$f":"Griglia!A2","v":"Conoscenza dei contenuti"},{"$f":"Griglia!A3","v":"Risoluzione dei problemi"},{"$f":"Griglia!A5","v":"Descrizione del procedimento"},{"$f":"Griglia!A4","v":"Capacità di calcolo"},{"$f":"C1","v":"Conoscenza dei contenuti"},{"$f":"D1","v":"Risoluzione dei problemi"},"Descrizione del procedimento","Capacità di calcolo","Punteggio","Giudizio"]
[null,null,null,null,null,null,null,null,null,null,{"$f":"IF(A2<>\"\",C2*Indicatori!$B$2+Giudizi!D2*Indicatori!$B$3+Giudizi!E2*Indicatori!$B$4+Giudizi!F2*Indicatori!$B$5,\"\")","v":""},{"$f":"CONCATENATE(G2,H2,I2,J2)","v":""}]
[null,null,null,null,null,null,null,null,null,null,{"$f":"IF(A3<>\"\",C3*Indicatori!$B$2+Giudizi!D3*Indicatori!$B$3+Giudizi!E3*Indicatori!$B$4+Giudizi!F3*Indicatori!$B$5,\"\")","v":""},{"$f":"CONCATENATE(G3,H3,I3,J3)","v":""}]
[null,null,null,null,null,null,null,null,null,null,{"$f":"IF(A4<>\"\",C4*Indicatori!$B$2+Giudizi!D4*Indicatori!$B$3+Giudizi!E4*Indicatori!$B$4+Giudizi!F4*Indicatori!$B$5,\"\")","v":""},""]
[null,null,null,null,null,null,null,null,null,null,{"$f":"IF(A5<>\"\",C5*Indicatori!$B$2+Giudizi!D5*Indicatori!$B$3+Giudizi!E5*Indicatori!$B$4+Giudizi!F5*Indicatori!$B$5,\"\")","v":""},""]
[null,null,null,null,null,null,null,null,null,null,{"$f":"IF(A6<>\"\",C6*Indicatori!$B$2+Giudizi!D6*Indicatori!$B$3+Giudizi!E6*Indicatori!$B$4+Giudizi!F6*Indicatori!$B$5,\"\")","v":""},""]
[null,null,null,null,null,null,null,null,null,null,{"$f":"IF(A7<>\"\",C7*Indicatori!$B$2+Giudizi!D7*Indicatori!$B$3+Giudizi!E7*Indicatori!$B$4+Giudizi!F7*Indicatori!$B$5,\"\")","v":""},""]
[null,null,null,null,null,null,null,null,null,null,{"$f":"IF(A8<>\"\",C8*Indicatori!$B$2+Giudizi!D8*Indicatori!$B$3+Giudizi!E8*Indicatori!$B$4+Giudizi!F8*Indicatori!$B$5,\"\")","v":""},""]
[null,null,null,null,null,null,null,null,null,null,{"$f":"IF(A9<>\"\",C9*Indicatori!$B$2+Giudizi!D9*Indicatori!$B$3+Giudizi!E9*Indicatori!$B$4+Giudizi!F9*Indicatori!$B$5,\"\")","v":""},""]
[null,null,null,null,null,null,null,null,null,null,{"$f":"IF(A10<>\"\",C10*Indicatori!$B$2+Giudizi!D10*Indicatori!$B$3+Giudizi!E10*Indicatori!$B$4+Giudizi!F10*Indicatori!$B$5,\"\")","v":""},""]
[null,null,null,null,null,null,null,null,null,null,{"$f":"IF(A11<>\"\",C11*Indicatori!$B$2+Giudizi!D11*Indicatori!$B$3+Giudizi!E11*Indicatori!$B$4+Giudizi!F11*Indicatori!$B$5,\"\")","v":""},""]
[null,null,null,null,null,null,null,null,null,null,{"$f":"IF(A12<>\"\",C12*Indicatori!$B$2+Giudizi!D12*Indicatori!$B$3+Giudizi!E12*Indicatori!$B$4+Giudizi!F12*Indicatori!$B$5,\"\")","v":""},""]
[null,null,null,null,null,null,null,null,null,null,{"$f":"IF(A13<>\"\",C13*Indicatori!$B$2+Giudizi!D13*Indicatori!$B$3+Giudizi!E13*Indicatori!$B$4+Giudizi!F13*Indicatori!$B$5,\"\")","v":""},""]
[null,null,null,null,null,null,null,null,null,null,{"$f":"IF(A14<>\"\",C14*Indicatori!$B$2+Giudizi!D14*Indicatori!$B$3+Giudizi!E14*Indicatori!$B$4+Giudizi!F14*Indicatori!$B$5,\"\")","v":""},""]
[null,null,null,null,null,null,null,null,null,null,{"$f":"IF(A15<>\"\",C15*Indicatori!$B$2+Giudizi!D15*Indicatori!$B$3+Giudizi!E15*Indicatori!$B$4+Giudizi!F15*Indicatori!$B$5,\"\")","v":""},""]
[null,null,null,null,null,null,null,null,null,null,{"$f":"IF(A16<>\"\",C16*Indicatori!$B$2+Giudizi!D16*Indicatori!$B$3+Giudizi!E16*Indicatori!$B$4+Giudizi!F16*Indicatori!$B$5,\"\")","v":""},""]
[null,null,null,null,null,null,null,null,null,null,{"$f":"IF(A17<>\"\",C17*Indicatori!$B$2+Giudizi!D17*Indicatori!$B$3+Giudizi!E17*Indicatori!$B$4+Giudizi!F17*Indicatori!$B$5,\"\")","v":""},""]
[null,null,null,null,null,null,null,null,null,null,{"$f":"IF(A18<>\"\",C18*Indicatori!$B$2+Giudizi!D18*Indicatori!$B$3+Giudizi!E18*Indicatori!$B$4+Giudizi!F18*Indicatori!$B$5,\"\")","v":""},""]
[null,null,null,null,null,null,null,null,null,null,{"$f":"IF(A19<>\"\",C19*Indicatori!$B$2+Giudizi!D19*Indicatori!$B$3+Giudizi!E19*Indicatori!$B$4+Giudizi!F19*Indicatori!$B$5,\"\")","v":""},""]
[null,null,null,null,null,null,null,null,null,null,{"$f":"IF(A20<>\"\",C20*Indicatori!$B$2+Giudizi!D20*Indicatori!$B$3+Giudizi!E20*Indicatori!$B$4+Giudizi!F20*Indicatori!$B$5,\"\")","v":""},""]
[null,null,null,null,null,null,null,null,null,null,{"$f":"IF(A21<>\"\",C21*Indicatori!$B$2+Giudizi!D21*Indicatori!$B$3+Giudizi!E21*Indicatori!$B$4+Giudizi!F21*Indicatori!$B$5,\"\")","v":""},""]
[null,null,null,null,null,null,null,null,null,null,{"$f":"IF(A22<>\"\",C22*Indicatori!$B$2+Giudizi!D22*Indicatori!$B$3+Giudizi!E22*Indicatori!$B$4+Giudizi!F22*Indicatori!$B$5,\"\")","v":""},""]
[null,null,null,null,null,null,null,null,null,null,{"$f":"IF(A23<>\"\",C23*Indicatori!$B$2+Giudizi!D23*Indicatori!$B$3+Giudizi!E23*Indicatori!$B$4+Giudizi!F23*Indicatori!$B$5,\"\")","v":""},""]
[null,null,null,null,null,null,null,null,null,null,{"$f":"IF(A24<>\"\",C24*Indicatori!$B$2+Giudizi!D24*Indicatori!$B$3+Giudizi!E24*Indicatori!$B$4+Giudizi!F24*Indicatori!$B$5,\"\")","v":""},""]
[null,null,null,null,null,null,null,null,null,null,{"$f":"IF(A25<>\"\",C25*Indicatori!$B$2+Giudizi!D25*Indicatori!$B$3+Giudizi!E25*Indicatori!$B$4+Giudizi!F25*Indicatori!$B$5,\"\")","v":""},""]
[null,null,null,null,null,null,null,null,null,null,{"$f":"IF(A26<>\"\",C26*Indicatori!$B$2+Giudizi!D26*Indicatori!$B$3+Giudizi!E26*Indicatori!$B$4+Giudizi!F26*Indicatori!$B$5,\"\")","v":""},""]
[null,null,null,null,null,null,null,null,null,null,{"$f":"IF(A27<>\"\",C27*Indicatori!$B$2+Giudizi!D27*Indicatori!$B$3+Giudizi!E27*Indicatori!$B$4+Giudizi!F27*Indicatori!$B$5,\"\")","v":""},""]
[null,null,null,null,null,null,null,null,null,null,{"$f":"IF(A28<>\"\",C28*Indicatori!$B$2+Giudizi!D28*Indicatori!$B$3+Giudizi!E28*Indicatori!$B$4+Giudizi!F28*Indicatori!$B$5,\"\")","v":""},""]
[null,null,null,null,null,null,null,null,null,null,{"$f":"IF(A29<>\"\",C29*Indicatori!$B$2+Giudizi!D29*Indicatori!$B$3+Giudizi!E29*Indicatori!$B$4+Giudizi!F29*Indicatori!$B$5,\"\")","v":""},""]
[null,null,null,null,null,null,null,null,null,null,{"$f":"IF(A30<>\"\",C30*Indicatori!$B$2+Giudizi!D30*Indicatori!$B$3+Giudizi!E30*Indicatori!$B$4+Giudizi!F30*Indicatori!$B$5,\"\")","v":""},""]
[null,null,null,null,null,null,null,null,null,null,{"$f":"IF(A31<>\"\",C31*Indicatori!$B$2+Giudizi!D31*Indicatori!$B$3+Giudizi!E31*Indicatori!$B$4+Giudizi!F31*Indicatori!$B$5,\"\")","v":""},""]
[null,null,null,null,null,null,null,null,null,null,{"$f":"IF(A32<>\"\",C32*Indicatori!$B$2+Giudizi!D32*Indicatori!$B$3+Giudizi!E32*Indicatori!$B$4+Giudizi!F32*Indicatori!$B$5,\"\")","v":""},""]
[null,null,null,null,null,null,null,null,null,null,{"$f":"IF(A33<>\"\",C33*Indicatori!$B$2+Giudizi!D33*Indicatori!$B$3+Giudizi!E33*Indicatori!$B$4+Giudizi!F33*Indicatori!$B$5,\"\")","v":""},""]
[null,null,null,null,null,null,null,null,null,null,{"$f":"IF(A34<>\"\",C34*Indicatori!$B$2+Giudizi!D34*Indicatori!$B$3+Giudizi!E34*Indicatori!$B$4+Giudizi!F34*Indicatori!$B$5,\"\")","v":""},""]
[null,null,null,null,null,null,null,null,null,null,{"$f":"IF(A35<>\"\",C35*Indicatori!$B$2+Giudizi!D35*Indicatori!$B$3+Giudizi!E35*Indicatori!$B$4+Giudizi!F35*Indicatori!$B$5,\"\")","v":""},""]
[null,null,null,null,null,null,null,null,null,null,{"$f":"IF(A36<>\"\",C36*Indicatori!$B$2+Giudizi!D36*Indicatori!$B$3+Giudizi!E36*Indicatori!$B$4+Giudizi!F36*Indicatori!$B$5,\"\")","v":""},""]
[null,null,null,null,null,null,null,null,null,null,{"$f":"IF(A37<>\"\",C37*Indicatori!$B$2+Giudizi!D37*Indicatori!$B$3+Giudizi!E37*Indicatori!$B$4+Giudizi!F37*Indicatori!$B$5,\"\")","v":""},""]
[null,null,null,null,null,null,null,null,null,null,{"$f":"IF(A38<>\"\",C38*Indicatori!$B$2+Giudizi!D38*Indicatori!$B$3+Giudizi!E38*Indicatori!$B$4+Giudizi!F38*Indicatori!$B$5,\"\")","v":""},""]
[null,null,null,null,null,null,null,null,null,null,{"$f":"IF(A39<>\"\",C39*Indicatori!$B$2+Giudizi!D39*Indicatori!$B$3+Giudizi!E39*Indicatori!$B$4+Giudizi!F39*Indicatori!$B$5,\"\")","v":""},""]
[null,null,null,null,null,null,null,null,null,null,{"$f":"IF(A40<>\"\",C40*Indicatori!$B$2+Giudizi!D40*Indicatori!$B$3+Giudizi!E40*Indicatori!$B$4+Giudizi!F40*Indicatori!$B$5,\"\")","v":""},""]
[null,null,null,null,null,null,null,null,null,null,{"$f":"IF(A41<>\"\",C41*Indicatori!$B$2+Giudizi!D41*Indicatori!$B$3+Giudizi!E41*Indicatori!$B$4+Giudizi!F41*Indicatori!$B$5,\"\")","v":""},""]
[null,null,null,null,null,null,null,null,null,null,{"$f":"IF(A42<>\"\",C42*Indicatori!$B$2+Giudizi!D42*Indicatori!$B$3+Giudizi!E42*Indicatori!$B$4+Giudizi!F42*Indicatori!$B$5,\"\")","v":""},""]
[null,null,null,null,null,null,null,null,null,null,{"$f":"IF(A43<>\"\",C43*Indicatori!$B$2+Giudizi!D43*Indicatori!$B$3+Giudizi!E43*Indicatori!$B$4+Giudizi!F43*Indicatori!$B$5,\"\")","v":""},""]
[null,null,null,null,null,null,null,null,null,null,{"$f":"IF(A44<>\"\",C44*Indicatori!$B$2+Giudizi!D44*Indicatori!$B$3+Giudizi!E44*Indicatori!$B$4+Giudizi!F44*Indicatori!$B$5,\"\")","v":""},""]
[null,null,null,null,null,null,null,null,null,null,{"$f":"IF(A45<>\"\",C45*Indicatori!$B$2+Giudizi!D45*Indicatori!$B$3+Giudizi!E45*Indicatori!$B$4+Giudizi!F45*Indicatori!$B$5,\"\")","v":""},""]
[null,null,null,null,null,null,null,null,null,null,{"$f":"IF(A46<>\"\",C46*Indicatori!$B$2+Giudizi!D46*Indicatori!$B$3+Giudizi!E46*Indicatori!$B$4+Giudizi!F46*Indicatori!$B$5,\"\")","v":""},""]
[null,null,null,null,null,null,null,null,null,null,{"$f":"IF(A47<>\"\",C47*Indicatori!$B$2+Giudizi!D47*Indicatori!$B$3+Giudizi!E47*Indicatori!$B$4+Giudizi!F47*Indicatori!$B$5,\"\")","v":""},""]
[null,null,null,null,null,null,null,null,null,null,{"$f":"IF(A48<>\"\",C48*Indicatori!$B$2+Giudizi!D48*Indicatori!$B$3+Giudizi!E48*Indicatori!$B$4+Giudizi!F48*Indicatori!$B$5,\"\")","v":""},""]
[null,null,null,null,null,null,null,null,null,null,{"$f":"IF(A49<>\"\",C49*Indicatori!$B$2+Giudizi!D49*Indicatori!$B$3+Giudizi!E49*Indicatori!$B$4+Giudizi!F49*Indicatori!$B$5,\"\")","v":""},""]
[null,null,null,null,null,null,null,null,null,null,{"$f":"IF(A50<>\"\",C50*Indicatori!$B$2+Giudizi!D50*Indicatori!$B$3+Giudizi!E50*Indicatori!$B$4+Giudizi!F50*Indicatori!$B$5,\"\")","v":""},""]
[null,null,null,null,null,null,null,null,null,null,{"$f":"IF(A51<>\"\",C51*Indicatori!$B$2+Giudizi!D51*Indicatori!$B$3+Giudizi!E51*Indicatori!$B$4+Giudizi!F51*Indicatori!$B$5,\"\")","v":""},""]
[null,null,null,null,null,null,null,null,null,null,{"$f":"IF(A52<>\"\",C52*Indicatori!$B$2+Giudizi!D52*Indicatori!$B$3+Giudizi!E52*Indicatori!$B$4+Giudizi!F52*Indicatori!$B$5,\"\")","v":""},""]
[null,null,null,null,null,null,null,null,null,null,{"$f":"IF(A53<>\"\",C53*Indicatori!$B$2+Giudizi!D53*Indicatori!$B$3+Giudizi!E53*Indicatori!$B$4+Giudizi!F53*Indicatori!$B$5,\"\")","v":""},""]
[null,null,null,null,null,null,null,null,null,null,{"$f":"IF(A54<>\"\",C54*Indicatori!$B$2+Giudizi!D54*Indicatori!$B$3+Giudizi!E54*Indicatori!$B$4+Giudizi!F54*Indicatori!$B$5,\"\")","v":""},""]
[null,null,null,null,null,null,null,null,null,null,{"$f":"IF(A55<>\"\",C55*Indicatori!$B$2+Giudizi!D55*Indicatori!$B$3+Giudizi!E55*Indicatori!$B$4+Giudizi!F55*Indicatori!$B$5,\"\")","v":""}]